fUST/lending_fUST_20250702
["ID","MTS","AMOUNT","RATE_DAILY","PERIOD"]
[368949589,1751407839491,-460.0,0.00017535,2]
[368949590,1751407839500,-460.0,0.00017535,2]
[368949591,1751407839510,-272.16086393,0.00017535,2]
[368949592,1751407839519,-460.0,0.00017535,2]
[368949593,1751407839528,-460.0,0.00017535,2]
[368949594,1751407839538,-460.0,0.00017535,2]
[368949595,1751407839547,-460.0,0.00017535,2]
[368949596,1751407839557,-460.0,0.00017535,2]
[368949597,1751407839566,-460.0,0.00017535,2]
[368949598,1751407839575,-535.79,0.00017535,2]
[368949599,1751407839585,-534.24,0.00017535,2]
[368949600,1751407839598,-460.0,0.00017535,2]
[368949601,1751407839615,-460.0,0.00017535,2]
[368949602,1751407839625,-500.39,0.00017535,2]
[368949603,1751407839635,-607.19,0.00017535,2]
[368949604,1751407839646,-540.90249887,0.00017535,2]
[368949605,1751407839655,-460.0,0.00017535,2]
[368949606,1751407839665,-460.0,0.00017535,2]
[368949607,1751407839674,-460.0,0.00017535,2]
[368949608,1751407839683,-569.25,0.00017535,2]
[368949609,1751407839692,-460.0,0.00017535,2]
[368949610,1751407839701,-460.0,0.00017535,2]
[368949611,1751407839710,-460.0,0.00017535,2]
[368949612,1751407839719,-460.0,0.00017535,2]
[368949613,1751407839729,-460.0,0.00017535,2]
[368949614,1751407839738,-460.0,0.00017535,2]
[368949615,1751407839747,-460.0,0.00017535,2]
[368949616,1751407839757,-460.0,0.00017535,2]
[368949617,1751407839766,-460.0,0.00017535,2]
[368949618,1751407839775,-460.0,0.00017535,2]
[368949619,1751407839785,-460.0,0.00017535,2]
[368949620,1751407839795,-460.0,0.00017535,2]
[368949621,1751407839804,-460.0,0.00017535,2]
[368949622,1751407839813,-460.0,0.00017535,2]
[368949623,1751407839827,-460.0,0.00017535,2]
[368949624,1751407839836,-460.0,0.00017535,2]
[368949625,1751407839845,-460.0,0.00017535,2]
[368949626,1751407839854,-570.13,0.00017535,2]
[368949627,1751407839864,-460.0,0.00017535,2]
[368949628,1751407839873,-460.0,0.00017535,2]
[368949629,1751407839883,-460.0,0.00017535,2]
[368949630,1751407839892,-460.0,0.00017535,2]
[368949631,1751407839902,-460.0,0.00017535,2]
[368949632,1751407839911,-480.43,0.00017536,2]
[368949633,1751407839920,-460.0,0.00017536,2]
[368949634,1751407839930,-460.0,0.00017536,2]
[368949635,1751407839939,-460.0,0.00017536,2]
[368949636,1751407839949,-460.0,0.00017536,2]
[368949637,1751407839958,-500.0,0.00017536,2]
[368949638,1751407839968,-460.0,0.00017536,2]
[368949639,1751407839977,-460.0,0.00017536,2]
[368949640,1751407839986,-460.0,0.00017536,2]
[368949641,1751407839996,-460.0,0.00017536,2]
[368949643,1751407840005,-460.0,0.00017536,2]
[368949645,1751407840015,-460.0,0.00017536,2]
[368949646,1751407840025,-460.0,0.00017536,2]
[368949647,1751407840034,-460.0,0.00017536,2]
[368949648,1751407840044,-460.0,0.00017536,2]
[368949649,1751407840054,-460.0,0.00017536,2]
[368949650,1751407840063,-460.0,0.00017536,2]
[368949651,1751407840072,-711.41,0.00017536,2]
[368949652,1751407840082,-460.0,0.00017808,2]
[368949653,1751407840092,-460.0,0.00017808,2]
[368949654,1751407840102,-460.0,0.00017808,2]
[368949655,1751407840111,-460.0,0.00017808,2]
[368949656,1751407840121,-532.23250265,0.00017808,2]
[368949657,1751407840130,-532.2,0.00017808,2]
[368949658,1751407840140,-521.68,0.00017808,2]
[368949659,1751407840150,-460.0,0.00017808,2]
[368949660,1751407840160,-460.0,0.00017808,2]
[368949661,1751407840170,-460.0,0.00017809,2]
[368949662,1751407840180,-460.0,0.00017809,2]
[368949663,1751407840189,-460.0,0.00017809,2]
[368949664,1751407840198,-460.0,0.00017809,2]
[368949665,1751407840207,-460.0,0.00017809,2]
[368949666,1751407840216,-500.39,0.00017809,2]
[368949668,1751407840226,-607.19,0.00017809,2]
[368949669,1751407840235,-460.0,0.00017809,2]
[368949670,1751407840245,-460.0,0.00017809,2]
[368949671,1751407840254,-460.0,0.00017809,2]
[368949672,1751407840265,-460.0,0.00017809,2]
[368949673,1751407840274,-460.0,0.00017809,2]
[368949674,1751407840284,-460.0,0.00017809,2]
[368949675,1751407840293,-460.0,0.00017809,2]
[368949676,1751407840303,-460.0,0.00017809,2]
[368949677,1751407840312,-587.46,0.00017809,2]
[368949678,1751407840321,-460.0,0.00017809,2]
[368949679,1751407840330,-460.0,0.00017809,2]
[368949680,1751407840339,-460.0,0.00017809,2]
[368949681,1751407840349,-460.0,0.00017809,2]
[368949683,1751407840358,-342.57760456,0.00017809,2]
[368949684,1751407840370,-460.0,0.00017809,2]
[368949685,1751407840380,-460.0,0.00017809,2]
[368949686,1751407840389,-460.0,0.00017809,2]
[368949687,1751407840398,-460.0,0.00017809,2]
[368949688,1751407840408,-495.85,0.00017809,2]
[368949690,1751407840417,-460.0,0.00017809,2]
[368949692,1751407840426,-570.13,0.00017809,2]
[368949694,1751407840436,-460.0,0.00017809,2]
[368949696,1751407840446,-460.0,0.00017809,2]
[368949698,1751407840455,-460.0,0.00017809,2]
[368949700,1751407840464,-460.0,0.00017809,2]
[368949702,1751407840473,-460.0,0.00017809,2]
[368949704,1751407840482,-460.0,0.0001781,2]
[368949706,1751407840491,-500.0,0.0001781,2]
[368949708,1751407840501,-460.0,0.0001781,2]
[368949710,1751407840510,-460.0,0.0001781,2]
[368949712,1751407840519,-460.0,0.0001781,2]
[368949714,1751407840529,-460.0,0.0001781,2]
[368949716,1751407840538,-514.83942294,0.0001781,2]
[368949718,1751407840548,-460.0,0.0001781,2]
[368949720,1751407840557,-460.0,0.0001781,2]
[368949722,1751407840566,-460.0,0.0001781,2]
[368949724,1751407840575,-460.0,0.0001781,2]
[368949726,1751407840585,-711.41,0.0001781,2]
[368949728,1751407840595,-460.0,0.00018082,2]
[368949730,1751407840603,-323.92854323,0.00018082,2]
[368949732,1751407840613,-460.0,0.00018082,2]
[368949734,1751407840622,-460.0,0.00018082,2]
[368949736,1751407840631,-532.2,0.00018082,2]
[368949738,1751407840641,-521.68,0.00018082,2]
[368949740,1751407840650,-460.0,0.00018082,2]
[368949742,1751407840660,-460.0,0.00018083,2]
[368949744,1751407840671,-460.0,0.00018083,2]
[368949746,1751407840681,-500.39,0.00018083,2]
[368949748,1751407840690,-607.19,0.00018083,2]
[368949750,1751407840699,-460.0,0.00018083,2]
[368949752,1751407840709,-460.0,0.00018083,2]
[368949754,1751407840718,-460.0,0.00018083,2]
[368949756,1751407840728,-460.0,0.00018083,2]
[368949758,1751407840738,-460.0,0.00018083,2]
[368949761,1751407840750,-460.0,0.00018083,2]
[368949763,1751407840760,-288.21,0.00018083,2]
[368949765,1751407840770,-460.0,0.00018083,2]
[368949767,1751407840781,-460.0,0.00018083,2]
[368949769,1751407840790,-460.0,0.00018083,2]
[368949771,1751407840801,-460.0,0.00018083,2]
[368949773,1751407840811,-460.0,0.00018083,2]
[368949775,1751407840820,-460.0,0.00018083,2]
[368949776,1751407840830,-460.0,0.00018083,2]
[368949779,1751407840844,-460.0,0.00018083,2]
[368949781,1751407840855,-570.13,0.00018083,2]
[368949783,1751407840865,-460.0,0.00018083,2]
[368949784,1751407840874,-460.0,0.00018083,2]
[368949786,1751407840883,-460.0,0.00018083,2]
[368949788,1751407840892,-460.0,0.00018083,2]
[368949791,1751407840906,-460.0,0.00018083,2]
[368949793,1751407840915,-460.0,0.00018084,2]
[368949795,1751407840925,-460.0,0.00018084,2]
[368949797,1751407840934,-460.0,0.00018084,2]
[368949799,1751407840944,-460.0,0.00018084,2]
[368949801,1751407840954,-475.05,0.00018084,2]
[368949803,1751407840963,-460.0,0.00018084,2]
[368949805,1751407840972,-711.41,0.00018084,2]
[368949807,1751407840982,-265.83156218,0.00018348,2]
[368949809,1751407840991,-460.0,0.00018356,2]
[368949811,1751407841000,-460.0,0.00018356,2]
[368949813,1751407841010,-532.2,0.00018356,2]
[368949815,1751407841019,-521.68,0.00018356,2]
[368949817,1751407841029,-500.39,0.00018357,2]
[368949819,1751407841038,-607.19,0.00018357,2]
[368949821,1751407841048,-460.0,0.00018357,2]
[368949824,1751407841058,-460.0,0.00018357,2]
[368949826,1751407841067,-460.0,0.00018357,2]
[368949828,1751407841077,-460.0,0.00018357,2]
[368949830,1751407841086,-395.38096173,0.00018357,2]
[368949832,1751407841096,-199.08,0.00018357,2]
[368949834,1751407841106,-270.0,0.00018357,2]
[368949836,1751407841115,-570.13,0.00018357,2]
[368949838,1751407841124,-496.04,0.00018357,2]
[368949840,1751407841134,-460.0,0.00018357,2]
[368949842,1751407841143,-460.0,0.00018357,2]
[368949844,1751407841152,-460.0,0.00018358,2]
[368949846,1751407841162,-460.0,0.00018358,2]
[368949848,1751407841172,-460.0,0.00018358,2]
[368949850,1751407841181,-460.0,0.00018358,2]
[368949852,1751407841190,-460.0,0.00018358,2]
[368949854,1751407841199,-711.41,0.00018358,2]
[368949856,1751407841209,-215.01728679,0.00018405,2]
[368949858,1751407841219,-160.0,0.00018405,2]
[368949860,1751407841228,-230.32585361,0.00018405,2]
[368949862,1751407841238,-837.20943635,0.00018405,2]
[368949864,1751407841247,-160.0,0.00018418,2]
[368949866,1751407841257,-460.0,0.0001863,2]
[368949868,1751407841266,-460.0,0.0001863,2]
[368949870,1751407841276,-532.2,0.0001863,2]
[368949873,1751407841286,-521.68,0.0001863,2]
[368949875,1751407841296,-500.39,0.00018631,2]
[368949877,1751407841306,-607.19,0.00018631,2]
[368949879,1751407841315,-460.0,0.00018631,2]
[368949881,1751407841325,-460.0,0.00018631,2]
[368949883,1751407841334,-570.13,0.00018631,2]
[368949885,1751407841344,-460.0,0.00018631,2]
[368949887,1751407841353,-183.84,0.00018631,2]
[368949889,1751407841365,-500.0,0.00018632,2]
[368949891,1751407841374,-460.0,0.00018632,2]
[368949893,1751407841384,-460.0,0.00018632,2]
[368949895,1751407841393,-460.0,0.00018632,2]
[368949897,1751407841404,-581.47,0.00018632,2]
[368949899,1751407841414,-711.41,0.00018632,2]
[368949901,1751407841423,-540.21084401,0.00018899,2]
[368949903,1751407841433,-187.50624644,0.000189,2]
[368949905,1751407841444,-656.32725554,0.000189,2]
[368949907,1751407841455,-439.83,0.00018904,2]
[368949909,1751407841464,-460.0,0.00018904,2]
[368949911,1751407841474,-532.2,0.00018904,2]
[368949913,1751407841483,-521.68,0.00018904,2]
[368949915,1751407841495,-500.39,0.00018905,2]
[368949917,1751407841504,-607.19,0.00018905,2]
[368949919,1751407841513,-460.0,0.00018905,2]
[368949921,1751407841523,-460.0,0.00018905,2]
[368949923,1751407841533,-570.13,0.00018905,2]
[368949925,1751407841543,-460.0,0.00018905,2]
[368949928,1751407841552,-460.0,0.00018906,2]
[368949930,1751407841562,-460.0,0.00018906,2]
[368949931,1751407841571,-460.0,0.00018906,2]
[368949934,1751407841581,-460.0,0.00018906,2]
[368949936,1751407841591,-711.41,0.00018906,2]
[368949938,1751407841600,-656.32725547,0.00019141,2]
[368949940,1751407841610,-460.0,0.00019178,2]
[368949942,1751407841619,-532.2,0.00019178,2]
[368949944,1751407841629,-521.68,0.00019178,2]
[368949946,1751407841638,-187.070226,0.00019178,2]
[368949948,1751407841648,-500.39,0.00019179,2]
[368949950,1751407841657,-607.19,0.00019179,2]
[368949964,1751407841782,-525.32,0.00019179,2]
[368949966,1751407841792,-460.0,0.00019179,2]
[368949969,1751407841803,-570.13,0.00019179,2]
[368949971,1751407841813,-276.41,0.00019179,2]
[368949973,1751407841823,-460.0,0.0001918,2]
[368949975,1751407841832,-460.0,0.0001918,2]
[368949977,1751407841842,-195.92,0.0001918,2]
[368949979,1751407841851,-460.0,0.0001918,2]
[368949981,1751407841860,-711.41,0.0001918,2]
[368949983,1751407841870,-656.32725547,0.00019383,2]
[368949985,1751407841880,-460.0,0.00019452,2]
[368949987,1751407841889,-532.2,0.00019452,2]
[368949989,1751407841899,-521.68,0.00019452,2]
[368949991,1751407841909,-500.39,0.00019453,2]
[368949993,1751407841918,-607.19,0.00019453,2]
[368949995,1751407841929,-376.52,0.00019453,2]
[368949997,1751407841939,-570.13,0.00019453,2]
[368949999,1751407841949,-460.0,0.00019454,2]
[368950001,1751407841958,-432.44,0.00019454,2]
[368950003,1751407841968,-460.0,0.00019454,2]
[368950005,1751407841977,-711.41,0.00019454,2]
[368950007,1751407841986,-656.32725547,0.00019624,2]
[368950009,1751407841995,-460.0,0.00019726,2]
[368950011,1751407842005,-532.2,0.00019726,2]
[368950013,1751407842015,-521.68,0.00019726,2]
[368950015,1751407842024,-500.39,0.00019727,2]
[368950017,1751407842033,-607.19,0.00019727,2]
[368950019,1751407842043,-570.13,0.00019727,2]
[368950021,1751407842053,-460.0,0.00019728,2]
[368950023,1751407842063,-460.0,0.00019728,2]
[368950025,1751407842072,-711.41,0.00019728,2]
[368950027,1751407842081,-656.32725547,0.00019866,2]
[368950029,1751407842090,-460.0,0.0002,2]
[368950031,1751407842100,-532.2,0.0002,2]
[368950034,1751407842109,-521.68,0.0002,2]
[368950036,1751407842119,-500.39,0.00020001,2]
[368950038,1751407842128,-607.19,0.00020001,2]
[368950039,1751407842136,-570.13,0.00020001,2]
[368950041,1751407842146,-460.0,0.00020002,2]
[368950043,1751407842155,-460.0,0.00020002,2]
[368950045,1751407842164,-711.41,0.00020002,2]
[368950048,1751407842174,-656.32725547,0.00020107,2]
[368950050,1751407842183,-460.0,0.00020274,2]
[368950052,1751407842192,-532.2,0.00020274,2]
[368950054,1751407842201,-521.68,0.00020274,2]
[368950055,1751407842211,-500.39,0.00020275,2]
[368950057,1751407842220,-607.19,0.00020275,2]
[368950060,1751407842229,-570.13,0.00020275,2]
[368950062,1751407842239,-525.34,0.00020276,2]
[368950064,1751407842248,-460.0,0.00020276,2]
[368950066,1751407842257,-711.41,0.00020276,2]
[368950068,1751407842267,-656.32725547,0.00020348,3]
[368950070,1751407842276,-460.0,0.00020548,2]
[368950072,1751407842285,-532.2,0.00020548,2]
[368950074,1751407842294,-521.68,0.00020548,2]
[368950076,1751407842304,-500.39,0.00020549,2]
[368950078,1751407842313,-607.19,0.00020549,2]
[368950080,1751407842323,-570.13,0.00020549,2]
[368950081,1751407842332,-460.0,0.0002055,2]
[368950084,1751407842342,-711.41,0.0002055,2]
[368950086,1751407842351,-656.32725547,0.0002059,3]
[368950088,1751407842360,-993.75,0.000206,2]
[368950089,1751407842372,-437.76,0.00020622,2]
[368950092,1751407842382,-460.0,0.00020822,2]
[368950094,1751407842391,-532.2,0.00020822,2]
[368950096,1751407842403,-521.68,0.00020822,2]
[368950098,1751407842412,-500.39,0.00020823,2]
[368950100,1751407842422,-607.19,0.00020823,2]
[368950102,1751407842431,-570.13,0.00020823,2]
[368950104,1751407842442,-326.08,0.00020824,2]
[368950106,1751407842452,-711.41,0.00020824,2]
[368950108,1751407842462,-656.32725547,0.00020831,4]
[368950110,1751407842471,-656.32725547,0.00021072,4]
[368950112,1751407842480,-460.0,0.00021096,2]
[368950114,1751407842489,-532.2,0.00021096,2]
[368950116,1751407842499,-521.68,0.00021096,2]
[368950118,1751407842508,-500.39,0.00021097,2]
[368950120,1751407842517,-607.19,0.00021097,2]
[368950122,1751407842527,-570.13,0.00021097,2]
[368950124,1751407842536,-711.41,0.00021098,2]
[368950126,1751407842547,-656.32725547,0.00021314,5]
[368950128,1751407842556,-460.0,0.0002137,2]
[368950130,1751407842565,-532.2,0.0002137,2]
[368950132,1751407842575,-500.39,0.00021371,2]
[368950134,1751407842585,-607.19,0.00021371,2]
[368950137,1751407842594,-570.13,0.00021371,2]
[368950139,1751407842603,-711.41,0.00021372,2]
[368950141,1751407842614,-5000.0,0.00021549,2]
[368950142,1751407842623,-207.4,0.00021549,2]
[368950145,1751407842632,-656.32725547,0.00021555,5]
[368950147,1751407842641,-5000.0,0.00021644,2]
[368950149,1751407842650,-460.0,0.00021644,2]
[368950151,1751407842659,-532.2,0.00021644,2]
[368950152,1751407842669,-500.39,0.00021645,2]
[368950153,1751407842678,-607.19,0.00021645,2]
[368950154,1751407842687,-570.13,0.00021645,2]
[368950155,1751407842697,-711.41,0.00021646,2]
[368950156,1751407842706,-656.32725547,0.00021797,6]
[368950157,1751407842715,-300.0,0.00021917,2]
[368950158,1751407842724,-460.0,0.00021918,2]
[368950159,1751407842734,-532.2,0.00021918,2]
[368950160,1751407842743,-500.39,0.00021919,2]
[368950161,1751407842752,-607.19,0.00021919,2]
[368950162,1751407842761,-570.13,0.00021919,2]
[368950163,1751407842771,-711.41,0.0002192,2]
[368950164,1751407842779,-10134.05086107,0.00021973,2]
[368950165,1751407842789,-343.78431234,0.00021996,2]
[368950166,1751407842798,-8260.39,0.00022,7]
[368950167,1751407842809,-1131.22,0.00022,7]
[368950168,1751407842818,-151.0,0.00022,7]
[368950169,1751407842827,-151.0,0.00022,7]
[368950170,1751407842839,-151.0,0.00022,7]
[368950171,1751407842848,-151.0,0.00022,7]
[368950172,1751407842858,-656.32725547,0.00022038,6]
[368950173,1751407842868,-5000.0,0.00022097,2]
[368950175,1751407842877,-205.0,0.00022109,2]
[368950177,1751407842886,-460.0,0.00022192,2]
[368950178,1751407842895,-532.2,0.00022192,2]
[368950181,1751407842905,-500.39,0.00022193,2]
[368950182,1751407842914,-607.19,0.00022193,2]
[368950184,1751407842924,-570.13,0.00022193,2]
[368950187,1751407842933,-711.41,0.00022194,2]
[368950189,1751407842943,-656.32725547,0.00022279,6]
[368950190,1751407842952,-151.0,0.000223,10]
[368950192,1751407842962,-460.0,0.00022466,2]
[368950194,1751407842971,-532.2,0.00022466,2]
[368950196,1751407842980,-151.0,0.00022467,7]
[368950198,1751407842990,-151.0,0.00022467,7]
[368950200,1751407842999,-151.0,0.00022467,7]
[368950202,1751407843008,-151.0,0.00022467,7]
[368950204,1751407843017,-151.0,0.00022467,7]
[368950206,1751407843027,-500.39,0.00022467,2]
[368950208,1751407843036,-607.19,0.00022467,2]
[368950210,1751407843045,-155.242032,0.00022467,7]
[368950212,1751407843055,-151.0,0.00022467,7]
[368950214,1751407843064,-153.164602,0.00022467,7]
[368950216,1751407843073,-151.0,0.00022467,7]
[368950218,1751407843083,-151.0,0.00022467,7]
[368950220,1751407843093,-151.0,0.00022467,7]
[368950222,1751407843102,-570.13,0.00022467,2]
[368950224,1751407843111,-711.41,0.00022468,2]
[368950227,1751407843121,-151.0,0.00022495,5]
[368950230,1751407843131,-656.32725547,0.00022521,7]
[368950234,1751407843141,-166.253804,0.00022521,7]
[368950236,1751407843150,-151.0,0.00022521,7]
[368950238,1751407843159,-168.0,0.00022651,2]
[368950240,1751407843168,-205.0,0.00022669,2]
[368950242,1751407843177,-205.0,0.00022694,2]
[368950244,1751407843187,-343.78431233,0.00022697,2]
[368950246,1751407843196,-993.75,0.000227,7]
[368950248,1751407843205,-460.0,0.0002274,2]
[368950250,1751407843214,-532.2,0.0002274,2]
[368950252,1751407843224,-151.0,0.00022741,7]
[368950254,1751407843233,-151.0,0.00022741,7]
[368950256,1751407843242,-151.0,0.00022741,7]
[368950258,1751407843251,-500.39,0.00022741,2]
[368950260,1751407843260,-607.19,0.00022741,2]
[368950262,1751407843270,-570.13,0.00022741,2]
[368950264,1751407843279,-711.41,0.00022742,2]
[368950266,1751407843288,-656.32725547,0.00022762,7]
[368950268,1751407843298,-151.0,0.00022884,6]
[368950271,1751407843308,-215.0738,0.00022918,2]
[368950273,1751407843318,-151.0,0.00023,8]
[368950274,1751407843327,-656.32725547,0.00023003,8]
[368950277,1751407843336,-223.34,0.00023014,2]
[368950279,1751407843346,-532.2,0.00023014,2]
[368950281,1751407843356,-500.39,0.00023015,2]
[368950283,1751407843367,-607.19,0.00023015,2]
[368950285,1751407843377,-570.13,0.00023015,2]
[368950287,1751407843386,-711.41,0.00023016,2]
[368950289,1751407843395,-168.0,0.00023171,2]
[368950291,1751407843404,-205.0,0.00023175,2]
[368950293,1751407843413,-656.32725547,0.00023245,8]
[368950295,1751407843424,-205.0,0.00023256,2]
[368950297,1751407843433,-151.0,0.00023271,7]
[368950299,1751407843442,-151.0,0.00023271,7]
[368950301,1751407843452,-151.0,0.00023271,7]
[368950303,1751407843461,-151.0,0.00023271,7]
[368950305,1751407843470,-151.0,0.00023271,7]
[368950307,1751407843479,-151.0,0.00023271,7]
[368950309,1751407843488,-151.0,0.00023271,7]
[368950311,1751407843497,-151.0,0.00023271,7]
[368950313,1751407843507,-151.0,0.00023271,2]
[368950315,1751407843517,-151.0,0.00023271,2]
[368950317,1751407843526,-151.0,0.00023272,6]
[368950319,1751407843536,-532.2,0.00023288,2]
[368950321,1751407843546,-500.39,0.00023289,2]
[368950323,1751407843555,-607.19,0.00023289,2]
[368950325,1751407843565,-570.13,0.00023289,2]
[368950327,1751407843574,-711.41,0.0002329,2]
[368950329,1751407843583,-200.0,0.0002342,8]
[368950331,1751407843592,-205.0,0.00023457,2]
[368950333,1751407843602,-656.32725547,0.00023486,9]
[368950335,1751407843611,-171.29341094,0.00023507,2]
[368950337,1751407843621,-166.2715739,0.00023507,2]
[368950339,1751407843630,-153.0,0.00023507,2]
[368950341,1751407843639,-153.0,0.00023507,2]
[368950343,1751407843649,-532.26,0.00023562,2]
[368950345,1751407843658,-500.6,0.00023563,2]
[368950347,1751407843668,-607.33,0.00023563,2]
[368950349,1751407843677,-570.23,0.00023563,2]
[368950351,1751407843687,-711.54,0.00023564,2]
[368950353,1751407843696,-151.0,0.000236,5]
[368950355,1751407843706,-8260.39,0.000236,7]
[368950357,1751407843715,-1131.22,0.000236,7]
[368950359,1751407843725,-642.71,0.000236,2]
[368950361,1751407843734,-151.0,0.000236,7]
[368950363,1751407843745,-151.0,0.000236,7]
[368950365,1751407843755,-151.0,0.00023661,6]
[368950367,1751407843764,-274.592,0.00023668,2]
[368950369,1751407843774,-150.0,0.00023668,2]
[368950371,1751407843783,-150.0,0.00023668,2]
[368950373,1751407843793,-646.0,0.00023668,2]
[368950375,1751407843803,-422.825,0.00023668,2]
[368950377,1751407843812,-656.32725547,0.00023728,9]
[368950380,1751407843822,-171.29341094,0.00023836,2]
[368950382,1751407843831,-500.0,0.0002389,2]
[368950384,1751407843841,-500.0,0.0002389,2]
[368950386,1751407843850,-500.0,0.0002389,2]
[368950388,1751407843859,-151.0,0.000239,7]
[368950390,1751407843869,-187.50624644,0.000239,2]
[368950392,1751407843879,-656.32725547,0.00023969,10]
[368950394,1751407843888,-167.224191,0.00023973,2]
[368950396,1751407843898,-524.61914904,0.00024,3]
[368950398,1751407843907,-524.61914904,0.00024,3]
[368950400,1751407843917,-215.01728679,0.00024,7]
[368950402,1751407843927,-160.0,0.00024,7]
[368950404,1751407843937,-837.20943635,0.00024,7]
[368950406,1751407843947,-230.32585361,0.00024,7]
[368950408,1751407843956,-151.0,0.0002405,7]
[368950410,1751407843965,-171.29341094,0.00024137,2]
[368950412,1751407843975,-500.0,0.0002415,2]
[368950414,1751407843984,-656.32725547,0.0002421,10]
[368950416,1751407843994,-500.0,0.0002422,2]
[368950418,1751407844004,-500.0,0.0002422,2]
[368950420,1751407844014,-223.0315306,0.00024287,2]
[368950422,1751407844024,-151.0,0.000243,5]
[368950424,1751407844034,-151.0,0.000243,7]
[368950426,1751407844043,-151.0,0.00024386,7]
[368950428,1751407844053,-151.0,0.00024386,7]
[368950431,1751407844063,-151.0,0.00024386,7]
[368950433,1751407844072,-1152.327444,0.00024392,4]
[368950435,1751407844082,-151.0,0.000244,8]
[368950437,1751407844091,-993.75,0.000244,7]
[368950439,1751407844100,-640.0,0.000244,2]
[368950441,1751407844110,-500.0,0.0002442,2]
[368950443,1751407844119,-151.0,0.00024439,7]
[368950445,1751407844129,-656.32725547,0.00024452,11]
[368950447,1751407844139,-171.29341094,0.00024466,2]
[368950459,1751407844247,-205.0,0.0002452,2]
[368950461,1751407844257,-205.0,0.00024531,2]
[368950463,1751407844266,-384.72507337,0.00024585,2]
[368950465,1751407844276,-5000.0,0.00024649,3]
[368950467,1751407844285,-50758.84185571,0.00024651,2]
[368950468,1751407844295,-151.0,0.00024651,7]
[368950469,1751407844304,-151.0,0.00024651,7]
[368950470,1751407844314,-151.0,0.00024651,7]
[368950471,1751407844323,-151.0,0.00024651,7]
[368950472,1751407844333,-151.0,0.00024651,7]
[368950473,1751407844342,-151.0,0.00024651,7]
[368950474,1751407844351,-151.0,0.00024651,7]
[368950475,1751407844361,-151.0,0.00024651,7]
[368950476,1751407844374,-733.097209,0.00024651,7]
[368950477,1751407844383,-151.0,0.00024651,7]
[368950478,1751407844392,-151.0,0.00024651,7]
[368950479,1751407844402,-151.0,0.00024651,7]
[368950480,1751407844413,-151.0,0.00024651,7]
[368950481,1751407844422,-151.0,0.00024651,2]
[368950482,1751407844431,-151.0,0.00024651,2]
[368950483,1751407844442,-227.259558,0.00024651,7]
[368950484,1751407844452,-151.0,0.00024651,7]
[368950485,1751407844461,-151.0,0.00024651,7]
[368950486,1751407844470,-151.0,0.00024651,7]
[368950487,1751407844480,-151.0,0.00024651,7]
[368950488,1751407844489,-151.0,0.00024651,7]